bitfinex-derivatives/quotes_SOLF0:USTF0_20260310
["timestamp","ask_amount","ask_price","bid_price","bid_amount"]
[1773126404960,0.00010586,86.43,86.386,3.93237771]
[1773126405259,3.42481027,86.43,86.386,3.93237771]
[1773126405649,0.00010586,86.43,86.386,3.93237771]
[1773126408965,0.00010586,86.43,86.39,3.94391744]
[1773126409566,0.00010586,86.43,86.392,3.94391744]
[1773126411259,0.00010586,86.43,86.378,3.94391744]
[1773126411962,0.00010586,86.43,86.379,10.418]
[1773126412264,0.00010586,86.43,86.38,3.94391744]
[1773126417770,3.97068936,86.413,86.362,3.94391744]
[1773126417970,3.97068936,86.429,86.362,3.94391744]
[1773126418772,3.97068936,86.426,86.371,3.94391744]
[1773126420276,3.97068936,86.424,86.372,10.419]
[1773126420475,3.97068936,86.424,86.372,14.36291744]
[1773126420672,3.97068936,86.424,86.333,3.94391744]
[1773126421278,3.97068936,86.422,86.368,3.94391744]
[1773126421771,3.97068936,86.42,86.372,10.419]
[1773126421973,3.97068936,86.42,86.368,3.94391744]
[1773126423275,3.97068936,86.41,86.368,3.94391744]
[1773126424176,9.18171224,86.43,86.33,23.37019931]
[1773126424177,4.01835877,86.408,86.355,14.49105937]
[1773126425378,4.01835877,86.405,86.355,14.49105937]
[1773126425973,4.01835877,86.405,86.359,10.421]
[1773126426175,10.416,86.397,86.359,4.07005937]
[1773126426374,4.01835877,86.405,86.359,4.07005937]
[1773126426881,4.01835877,86.396,86.345,4.07005937]
[1773126427581,3.43185661,86.38,86.345,4.07005937]
[1773126428681,3.43185661,86.38,86.347,4.07005937]
[1773126429185,3.43185661,86.38,86.336,10.423]
[1773126429385,3.43185661,86.37,86.336,10.423]
[1773126429684,3.43185661,86.37,86.32,3.43185661]
[1773126429685,3.43185661,86.37,86.339,10.423]
[1773126432184,4.01835877,86.369,86.312,4.07005937]
[1773126432486,3.43185661,86.36,86.318,4.07005937]
[1773126432883,3.43185661,86.36,86.328,4.07005937]
[1773126434189,3.43185661,86.35,86.319,10.425]
[1773126434586,3.43185661,86.35,86.322,10.425]
[1773126434790,3.43185661,86.36,86.323,4.07005937]
[1773126435396,3.43185661,86.34,86.305,10.427]
[1773126435693,3.43185661,86.34,86.306,4.07005937]
[1773126436489,3.43185661,86.34,86.29,3.43185661]
[1773126436490,3.43185661,86.34,86.31,14.49605937]
[1773126436890,4.01835877,86.349,86.31,14.49605937]
[1773126438295,3.43185661,86.34,86.31,4.07005937]
[1773126440098,3.43185661,86.33,86.298,14.49805937]
[1773126440292,3.43185661,86.34,86.304,4.07005937]
[1773126441493,3.43185661,86.34,86.306,14.49705937]
[1773126442595,3.43185661,86.34,86.307,4.07005937]
[1773126443690,3.43185661,86.35,86.307,4.07005937]
[1773126445496,3.43185661,86.35,86.313,10.426]
[1773126445692,4.01835877,86.353,86.314,4.07005937]
[1773126445894,3.43185661,86.36,86.314,4.07005937]
[1773126446902,4.01835877,86.339,86.281,4.07005937]
[1773126448190,3.43185661,86.33,86.281,4.07005937]
[1773126448395,3.43185661,86.33,86.299,10.428]
[1773126448691,4.01835877,86.339,86.3,4.07005937]
[1773126449199,3.43185661,86.36,86.31,4.07005937]
[1773126449899,3.43185661,86.36,86.322,10.425]
[1773126451604,3.43185661,86.36,86.27,35.05159293]
[1773126451605,3.43185661,86.38,86.326,4.07005937]
[1773126451806,3.43185661,86.38,86.331,4.07005937]
[1773126452005,3.43185661,86.37,86.331,4.07005937]
[1773126452200,7.45021538,86.37,86.331,4.07005937]
[1773126452402,7.45021538,86.37,86.331,14.49405937]
[1773126452605,4.01835877,86.37,86.331,14.49405937]
[1773126453005,3.43185661,86.38,86.334,4.07005937]
[1773126453208,185.24010586,86.479,86.334,4.07005937]
[1773126453405,14.99216398,86.499,86.391,162.044]
[1773126453709,14.99216398,86.499,86.44,9.16419051]
[1773126454912,14.99216398,86.499,86.457,10.409]
[1773126455114,9.16419051,86.55,86.474,10.58686497]
[1773126455307,161.609,86.624,86.475,9.43681096]
[1773126455506,9.16419051,86.56,86.481,10.58686497]
[1773126455709,9.16419051,86.56,86.485,10.58686497]
[1773126455904,9.16419051,86.54,86.487,10.58686497]
[1773126456211,9.16419051,86.54,86.488,9.43681096]
[1773126456402,9.16419051,86.54,86.489,9.43681096]
[1773126456603,9.16419051,86.54,86.49,9.43681096]
[1773126456800,9.16419051,86.54,86.491,9.43681096]
[1773126457000,7.41836556,86.519,86.476,10.58686497]
[1773126457208,7.41836556,86.519,86.466,10.58686497]
[1773126457410,7.41836556,86.519,86.42,9.16419051]
[1773126457411,7.41836556,86.519,86.465,10.58686497]
[1773126457813,3.85067182,86.499,86.432,21.18115615]
[1773126458014,3.85067182,86.499,86.421,3.96038384]
[1773126459009,3.85067182,86.499,86.425,3.96038384]
[1773126460012,3.85067182,86.499,86.379,162.067]
[1773126460013,1.80722347,86.516,86.447,3.96038384]
[1773126463412,1.80722347,86.516,86.448,3.96038384]
[1773126464415,161.648,86.604,86.4,9.16419051]
[1773126464416,1.87362873,86.535,86.45,3.96038384]
[1773126464614,1.87362873,86.519,86.45,3.96038384]
[1773126467114,1.87362873,86.519,86.454,3.96038384]
[1773126469122,1.87362873,86.519,86.455,9.21677616]
[1773126469314,1.97353212,86.518,86.456,13.17716]
[1773126469516,1.97353212,86.518,86.457,9.21677616]
[1773126469815,1.97353212,86.518,86.458,9.21677616]
[1773126470020,2.02644132,86.516,86.459,9.21677616]
[1773126470222,2.02644132,86.516,86.44,3.96038384]
[1773126470418,2.02644132,86.499,86.441,9.21217341]
[1773126470624,2.02644132,86.499,86.44,3.96038384]
[1773126470625,2.02644132,86.499,86.442,9.21217341]
[1773126470920,2.02644132,86.499,86.443,9.21217341]
[1773126471118,2.02644132,86.499,86.44,3.96038384]
[1773126471424,2.0936658,86.496,86.419,4.09153951]
[1773126471725,2.0936658,86.496,86.421,4.09153951]
[1773126471918,2.0936658,86.496,86.423,4.09153951]
[1773126472121,2.0936658,86.496,86.424,13.30389591]
[1773126472315,2.05433613,86.494,86.425,9.2123564]
[1773126472520,2.05433613,86.519,86.429,4.09153951]
[1773126472718,2.05433613,86.519,86.431,4.09153951]
[1773126472917,2.05433613,86.519,86.433,4.09153951]
[1773126473128,34.69813096,86.615,86.491,161.856]
[1773126473423,34.69813096,86.615,86.502,161.836]
[1773126473632,34.69813096,86.615,86.552,10.397]
[1773126474131,34.69813096,86.615,86.513,48.817268]
[1773126474132,34.69813096,86.615,86.565,10.396]
[1773126474421,34.69813096,86.615,86.521,161.801]
[1773126474628,34.69813096,86.615,86.566,10.396]
[1773126475026,34.69813096,86.615,86.54,9.14446871]
[1773126475228,34.69813096,86.615,86.567,10.396]
[1773126475524,34.67523217,86.639,86.56,9.14446871]
[1773126475730,34.67523217,86.639,86.561,9.12903967]
[1773126476031,34.67523217,86.639,86.56,9.14446871]
[1773126476032,34.67523217,86.639,86.564,10.396]
[1773126477028,34.67523217,86.639,86.576,10.394]
[1773126477830,9.14446871,86.7,86.53,161.784]
[1773126477831,34.73732574,86.657,86.58,9.14446871]
[1773126478018,34.73732574,86.657,86.581,9.09458183]
[1773126478224,34.73732574,86.657,86.602,10.391]
[1773126479523,34.73732574,86.657,86.588,10.393]
[1773126479929,9.14446871,86.69,86.56,9.14446871]
[1773126479930,34.76511492,86.644,86.56,9.14446871]
[1773126480222,34.76511492,86.644,86.54,9.14446871]
[1773126481323,9.14446871,86.63,86.54,9.14446871]
[1773126481527,34.76668813,86.629,86.54,9.14446871]
[1773126482130,34.74829995,86.614,86.532,10.4]
[1773126483031,34.74967274,86.611,86.52,9.14446871]
[1773126483532,34.74967274,86.611,86.491,161.858]
[1773126483830,34.74967274,86.611,86.52,9.14446871]
[1773126484227,34.72564552,86.609,86.531,10.4]
[1773126484829,9.14446871,86.63,86.482,13.77746246]
[1773126484830,34.72564552,86.589,86.518,10.401]
[1773126485334,34.72676405,86.648,86.583,10.394]
[1773126485631,34.72676405,86.648,86.59,9.14446871]
[1773126485835,34.72676405,86.648,86.592,10.393]
[1773126486630,34.71440014,86.678,86.61,9.14446871]
[1773126487428,34.71440014,86.678,86.616,10.39]
[1773126490234,34.71440014,86.678,86.626,10.388]
[1773126490931,34.71440014,86.678,86.637,10.387]
[1773126491139,34.71440014,86.678,86.578,34.8]
[1773126491437,34.71440014,86.678,86.6,9.14446871]
[1773126491836,34.57475165,86.664,86.588,10.393]
[1773126493438,34.58363965,86.656,86.588,10.393]
[1773126494133,34.60928524,86.654,86.588,10.393]
[1773126494339,34.60928524,86.654,86.55,9.14446871]
[1773126495141,34.60945514,86.631,86.57,10.395]
[1773126496841,34.51614716,86.628,86.57,10.395]
[1773126497144,34.51614716,86.628,86.56,10.396]
[1773126498440,34.51377541,86.625,86.56,10.396]
[1773126499339,34.51335588,86.619,86.56,10.396]
[1773126502244,34.51335588,86.619,86.454,13.77746246]
[1773126502245,29.31859131,86.579,86.454,13.77746246]
[1773126502453,29.31859131,86.559,86.416,161.998]
[1773126502742,29.31859131,86.559,86.46,9.14446871]
[1773126502947,29.31859131,86.529,86.46,9.14446871]
[1773126503146,29.31859131,86.529,86.43,9.14446871]
[1773126503342,29.31859131,86.529,86.433,10.412]
[1773126503644,29.3181665,86.519,86.433,10.412]
[1773126503846,10.404,86.5,86.433,10.412]
[1773126504444,29.42675041,86.499,86.433,10.412]
[1773126505445,10.404,86.494,86.433,10.412]
[1773126505650,29.42675041,86.499,86.433,10.412]
[1773126506049,10.404,86.498,86.433,10.412]
[1773126508444,39.79930063,86.498,86.433,10.412]
[1773126508650,9.14446871,86.52,86.422,10.413]
[1773126508651,29.39530063,86.492,86.422,10.413]
[1773126509249,29.39535894,86.489,86.422,10.413]
[1773126509942,29.39535894,86.489,86.433,10.412]
[1773126510146,29.39619168,86.519,86.43,9.14446871]
[1773126511154,29.39619168,86.519,86.454,10.409]
[1773126511348,29.39619168,86.519,86.43,9.14446871]
[1773126512852,29.39619168,86.519,86.465,10.408]
[1773126513453,29.39660889,86.539,86.475,10.407]
[1773126514043,10.399,86.538,86.475,10.407]
[1773126514245,29.39609109,86.537,86.475,10.407]
[1773126515155,10.399,86.536,86.475,10.407]
[1773126516156,10.4,86.533,86.475,10.407]
[1773126518154,29.39743858,86.535,86.475,10.407]
[1773126518360,29.39743858,86.535,86.416,20.828]
[1773126518361,29.39743858,86.535,86.47,9.14446871]
[1773126519262,29.39743858,86.535,86.484,10.405]
[1773126520957,29.41938056,86.533,86.473,10.407]
[1773126522460,29.4205649,86.531,86.473,10.407]
[1773126523056,29.42072305,86.526,86.462,10.408]
[1773126523257,29.42072305,86.526,86.43,9.14446871]
[1773126523761,29.42072305,86.515,86.454,10.409]
[1773126524164,29.42072305,86.515,86.417,34.8]
[1773126524359,29.42072305,86.515,86.411,34.8]
[1773126524559,29.44317235,86.501,86.436,10.411]
[1773126525463,29.44342377,86.493,86.436,10.411]
[1773126525860,29.44342377,86.493,86.426,10.412]
[1773126526364,29.46595657,86.482,86.426,10.412]
[1773126528775,29.46595657,86.482,86.434,10.411]
[1773126531272,161.734,86.558,86.41,10.414]
[1773126531273,29.40892353,86.464,86.41,10.414]
[1773126532467,29.40892353,86.464,86.35,177.0]
[1773126532468,29.37456529,86.462,86.36,9.14446871]
[1773126532670,29.37456529,86.439,86.298,13.77746246]
[1773126532870,9.14446871,86.46,86.32,9.14446871]
[1773126532871,29.37456529,86.418,86.32,9.14446871]
[1773126533368,29.37456529,86.418,86.354,10.421]
[1773126534368,29.41733445,86.415,86.343,10.422]
[1773126534868,9.14446871,86.4,86.331,10.424]
[1773126535070,9.14446871,86.4,86.29,9.14446871]
[1773126535071,29.41745174,86.399,86.29,9.14446871]
[1773126535276,29.41745174,86.399,86.298,2.01477502]
[1773126535678,29.41745174,86.389,86.298,2.01477502]
[1773126536469,29.42375723,86.386,86.32,10.425]
[1773126540079,29.45121546,86.384,86.32,10.425]
[1773126540482,29.42180416,86.382,86.309,10.427]
[1773126540682,29.42180416,86.369,86.309,10.427]
[1773126541178,29.42180416,86.369,86.299,10.428]
[1773126541480,29.42180416,86.369,86.27,9.19407957]
[1773126542373,29.41021433,86.356,86.288,10.429]
[1773126545276,29.41021433,86.356,86.297,10.428]
[1773126546482,29.36840095,86.354,86.297,10.428]
[1773126547480,29.36835049,86.349,86.268,2.01559188]
[1773126547688,29.36835049,86.349,86.241,162.327]
[1773126547689,29.36835049,86.349,86.27,9.19407957]
[1773126548181,29.36835049,86.349,86.31,10.426]
[1773126548380,29.3648661,86.365,86.29,9.19407957]
[1773126549184,29.3648661,86.365,86.27,9.19407957]
[1773126549593,29.36480704,86.363,86.297,10.428]
[1773126549993,29.36480704,86.363,86.27,9.19407957]
[1773126550191,29.36480704,86.363,86.307,10.427]
[1773126551995,29.36480704,86.363,86.29,9.19407957]
[1773126553391,29.36480704,86.363,86.311,10.426]
[1773126553892,29.42097712,86.361,86.302,10.427]
[1773126554093,29.41579983,86.359,86.302,10.427]
[1773126555395,29.41588201,86.356,86.302,10.427]
[1773126555786,29.41588201,86.356,86.293,10.428]
[1773126557494,29.45660445,86.352,86.301,10.428]
[1773126562201,29.46645602,86.35,86.27,9.19407957]
[1773126562798,29.46645602,86.35,86.308,10.427]
[1773126563095,29.46645602,86.35,86.27,9.19407957]
[1773126563301,29.46645602,86.35,86.248,34.8]
[1773126563302,29.46665029,86.339,86.288,10.429]
[1773126564499,29.4924054,86.338,86.288,10.429]
[1773126565907,29.4924054,86.338,86.279,10.43]
[1773126566602,29.47370868,86.328,86.279,10.43]
[1773126568501,29.47370868,86.328,86.288,10.429]
[1773126569902,29.47370868,86.328,86.279,10.43]
[1773126570109,29.47370868,86.328,86.23,9.19407957]
[1773126570410,29.47370868,86.328,86.238,2.01635683]
[1773126571511,29.46314052,86.325,86.267,10.432]
[1773126572010,29.43261035,86.314,86.258,10.433]
[1773126573414,29.43270871,86.311,86.258,10.433]
[1773126575010,29.43270871,86.311,86.272,10.431]
[1773126576409,29.43270871,86.311,86.262,10.432]
[1773126576608,29.43270871,86.311,86.228,2.0165613]
[1773126576811,29.43270871,86.311,86.24,9.19407957]
[1773126578315,29.43270871,86.311,86.269,10.431]
[1773126579812,29.46885108,86.31,86.256,10.433]
[1773126580013,29.46885108,86.31,86.239,13.77746246]
[1773126580217,29.46885108,86.31,86.23,9.19407957]
[1773126580218,29.46885108,86.31,86.24,13.77746246]
[1773126580413,29.46885108,86.31,86.241,13.77746246]
[1773126582115,29.46885108,86.31,86.243,13.77746246]
[1773126583110,29.46885108,86.31,86.244,13.77746246]
[1773126583313,29.48176643,86.339,86.25,9.19407957]
[1773126584420,29.48740103,86.337,86.284,10.43]
[1773126585321,29.48757923,86.334,86.284,10.43]
[1773126585628,29.48757923,86.334,86.24,20.66842324]
[1773126585629,29.48757923,86.334,86.294,10.428]
[1773126586423,29.49342729,86.351,86.294,10.428]
[1773126587828,29.49342729,86.351,86.29,9.19407957]
[1773126589431,29.49342729,86.351,86.305,10.427]
[1773126589725,29.49342729,86.351,86.282,13.77746246]
[1773126589930,29.49342729,86.351,86.296,10.428]
[1773126591026,29.51016217,86.349,86.283,10.43]
[1773126591226,29.51016217,86.349,86.278,13.77746246]
[1773126591632,29.51016217,86.349,86.286,10.429]
[1773126591832,29.51016217,86.349,86.278,13.77746246]
[1773126592934,29.51016217,86.349,86.294,10.428]
[1773126593634,29.51354565,86.339,86.294,10.428]
[1773126596037,29.51354565,86.339,86.3,3.43446634]
[1773126597734,29.51354565,86.339,86.294,10.428]
[1773126597935,29.51354565,86.339,86.3,3.43426159]
[1773126598139,29.44623158,86.353,86.31,3.43426159]
[1773126598633,29.44623158,86.353,86.32,3.43426159]
[1773126598831,29.44623158,86.353,86.31,3.43426159]
[1773126599435,29.44623158,86.353,86.321,10.425]
[1773126600233,10.60153047,86.403,86.31,3.43426159]
[1773126600434,29.44335235,86.366,86.33,3.43426159]
[1773126600636,29.44335235,86.359,86.31,3.43426159]
[1773126601138,29.44335235,86.359,86.315,10.426]
[1773126601339,29.44335235,86.359,86.3,3.43426159]
[1773126601731,29.4434333,86.349,86.304,10.427]
[1773126605533,29.4434333,86.349,86.316,10.426]
[1773126609945,32.94768974,86.34,86.298,10.428]
[1773126610147,29.51342815,86.34,86.3,3.43426159]
[1773126610349,20.832,86.399,86.263,34.76]
[1773126610350,56.22128128,86.449,86.322,162.174]
[1773126610642,56.22128128,86.449,86.283,20.66842324]
[1773126610644,14.3832307,86.53,86.43,3.43426159]
[1773126610838,3.43426159,86.47,86.41,3.43426159]
[1773126611036,3.43426159,86.48,86.42,3.43426159]
[1773126611438,3.43426159,86.47,86.412,10.414]
[1773126611640,9.17418107,86.49,86.412,10.414]
[1773126611849,9.17418107,86.49,86.393,10.68179584]
[1773126612044,9.17418107,86.49,86.395,10.68179584]
[1773126612248,9.17418107,86.49,86.39,9.17418107]
[1773126612546,47.51050682,86.489,86.39,9.17418107]
[1773126613346,47.51050682,86.489,86.41,9.17418107]
[1773126614149,47.51050682,86.489,86.435,10.411]
[1773126614549,47.51050682,86.489,86.38,9.17418107]
[1773126614745,47.52750341,86.469,86.392,10.417]
[1773126615745,47.52799231,86.449,86.379,10.418]
[1773126620157,47.52799231,86.449,86.391,10.417]
[1773126621160,47.60530156,86.439,86.378,10.418]
[1773126623960,47.60530156,86.439,86.37,9.17418107]
[1773126624151,47.60664262,86.454,86.37,9.17418107]
[1773126624357,47.60664262,86.454,86.402,10.415]
[1773126624558,47.60664262,86.469,86.39,9.17418107]
[1773126625251,47.60664262,86.469,86.414,10.414]
[1773126625856,47.60664262,86.469,86.39,9.17418107]
[1773126625857,47.60664262,86.469,86.402,10.415]
[1773126627461,58.01364262,86.469,86.402,10.415]
[1773126628159,20.799,86.538,86.371,34.76]
[1773126628160,47.84539252,86.499,86.431,10.412]
[1773126629057,47.84539252,86.499,86.441,10.411]
[1773126629757,9.17418107,86.5,86.4,9.17418107]
[1773126629758,47.84691478,86.495,86.4,9.17418107]
[1773126630555,47.84691478,86.495,86.377,10.61358034]
[1773126630556,47.84691478,86.495,86.42,9.17418107]
[1773126631163,47.84691478,86.495,86.436,10.411]
[1773126631459,47.8442887,86.479,86.38,9.17418107]
[1773126632165,47.89073594,86.476,86.409,10.414]
[1773126632859,47.89073594,86.476,86.419,10.413]
[1773126633668,9.17418107,86.48,86.409,10.415]
[1773126633669,47.89232199,86.474,86.409,10.415]
[1773126633865,47.89232199,86.533,86.38,9.17418107]
[1773126634063,47.89232199,86.533,86.353,191.29344288]
[1773126634064,47.95688102,86.559,86.46,9.17418107]
[1773126634379,47.95688102,86.59,86.52,9.17418107]
[1773126634569,47.95688102,86.59,86.473,161.891]
[1773126634570,47.95688102,86.59,86.48,9.17418107]
[1773126634861,47.95688102,86.59,86.486,34.76]
[1773126635168,57.13106209,86.59,86.5,9.17418107]
[1773126635367,47.95688102,86.59,86.501,8.52120886]
[1773126635560,47.95688102,86.59,86.502,8.52120886]
[1773126635761,9.17418107,86.62,86.52,9.17418107]
[1773126636063,9.17418107,86.64,86.54,9.17418107]
[1773126636264,9.17418107,86.62,86.541,8.52120886]
[1773126636462,10.385,86.654,86.565,10.396]
[1773126636659,9.17418107,86.64,86.565,10.396]
[1773126636961,10.387,86.639,86.548,10.398]
[1773126637167,9.17418107,86.62,86.548,10.398]
[1773126637361,9.17418107,86.64,86.54,9.17418107]
[1773126637565,9.17418107,86.64,86.541,8.48154748]
[1773126637768,39.13207075,86.619,86.548,10.398]
[1773126638364,39.11085075,86.637,86.549,8.46836361]
[1773126638564,39.11085075,86.637,86.55,8.47035385]
[1773126638765,39.11085075,86.637,86.54,9.17418107]
[1773126639060,39.11085075,86.637,86.541,8.47278905]
[1773126639265,39.11085075,86.637,86.54,9.17418107]
[1773126639859,39.11085075,86.637,86.541,8.46214633]
[1773126640062,39.11085075,86.637,86.54,9.17418107]
[1773126640365,39.12193508,86.599,86.48,161.877]
[1773126640669,39.12193508,86.599,86.5,9.17418107]
[1773126640968,39.12193508,86.599,86.518,10.401]
[1773126641174,39.12193508,86.599,86.5,9.17418107]
[1773126641368,39.12193508,86.599,86.501,8.45598549]
[1773126641568,39.12193508,86.599,86.502,8.45598549]
[1773126641767,39.12193508,86.599,86.503,8.45598549]
[1773126641970,39.12193508,86.599,86.504,8.45598549]
[1773126642169,39.12193508,86.599,86.5,9.17418107]
[1773126642367,39.12193508,86.599,86.531,10.4]
[1773126645173,39.12193508,86.599,86.517,10.401]
[1773126645674,39.08400489,86.579,86.48,9.17418107]
[1773126645870,39.08400489,86.579,86.481,8.4527754]
[1773126646068,39.08400489,86.579,86.482,8.4527754]
[1773126646268,39.08400489,86.579,86.483,8.4527754]
[1773126646469,39.08400489,86.579,86.516,10.402]
[1773126646774,39.08400489,86.579,86.48,9.17418107]
[1773126646973,39.08400489,86.579,86.516,10.402]
[1773126647272,39.08400489,86.579,86.5,9.17418107]
[1773126647474,39.08400489,86.579,86.532,10.4]
[1773126649771,39.08400489,86.579,86.52,10.401]
[1773126649972,39.08400489,86.579,86.5,9.17418107]
[1773126650170,39.08400489,86.579,86.501,8.45614537]
[1773126650367,39.08400489,86.579,86.524,10.401]
[1773126652977,43.63990347,86.646,86.525,8.4695689]
[1773126653179,43.63990347,86.646,86.56,9.17418107]
[1773126653479,43.63990347,86.646,86.58,9.17418107]
[1773126653682,43.63990347,86.665,86.581,8.45880065]
[1773126653977,43.63990347,86.665,86.582,8.45880065]
[1773126654172,43.63990347,86.665,86.629,10.388]
[1773126654368,43.63990347,86.665,86.58,9.17418107]
[1773126654570,43.63990347,86.665,86.581,8.46017345]
[1773126654771,43.63990347,86.665,86.582,8.46017345]
[1773126654978,43.63990347,86.665,86.58,9.17418107]
[1773126654979,43.63990347,86.665,86.583,8.46017345]
[1773126655181,43.63990347,86.665,86.584,8.46017345]
[1773126655376,43.63990347,86.665,86.585,8.46017345]
[1773126655578,43.63990347,86.665,86.606,10.391]
[1773126655773,43.63990347,86.665,86.58,9.17418107]
[1773126655979,43.63990347,86.665,86.581,8.47037441]
[1773126656177,43.63990347,86.665,86.582,8.47037441]
[1773126656376,43.63990347,86.665,86.606,10.391]
[1773126656577,43.60056953,86.659,86.561,10.42777375]
[1773126656772,43.60056953,86.659,86.58,9.17418107]
[1773126657083,43.60056953,86.659,86.597,10.392]
[1773126657381,43.60142627,86.639,86.54,9.17418107]
[1773126657581,43.60142627,86.639,86.576,10.394]
[1773126657780,43.60142627,86.636,86.54,9.17418107]
[1773126657980,43.60142627,86.636,86.541,8.46488543]
[1773126658183,43.60142627,86.636,86.542,8.46488543]
[1773126658383,43.60142627,86.636,86.543,8.46488543]
[1773126658583,43.60142627,86.636,86.544,8.46488543]
[1773126658785,43.6598387,86.629,86.569,10.395]
[1773126658984,43.66085734,86.619,86.53,9.17418107]
[1773126659185,43.66085734,86.619,86.531,8.46489916]
[1773126659386,43.66085734,86.619,86.557,10.397]
[1773126660382,43.64028256,86.617,86.557,10.397]
[1773126660875,9.14230649,86.63,86.557,10.397]
[1773126660876,43.64028256,86.615,86.557,10.397]
[1773126661276,43.64028256,86.615,86.53,9.14230649]
[1773126661475,43.64120966,86.635,86.55,9.14230649]
[1773126661680,43.64120966,86.635,86.551,8.47200368]
[1773126661878,43.64120966,86.635,86.585,10.393]
[1773126662076,43.64120966,86.635,86.55,9.14230649]
[1773126662280,43.64120966,86.635,86.551,8.47416075]
[1773126662486,43.64120966,86.635,86.552,8.47416075]
[1773126662684,43.64120966,86.635,86.55,9.14230649]
[1773126662685,43.53083787,86.629,86.52,9.14230649]
[1773126662888,43.53083787,86.609,86.521,8.48304656]
[1773126663084,43.53083787,86.609,86.522,8.48304656]
[1773126663385,43.53083787,86.609,86.523,8.48304656]
[1773126663586,43.53083787,86.609,86.524,8.48304656]
[1773126663782,43.53083787,86.609,86.539,10.399]
[1773126664486,43.72495429,86.589,86.507,184.8]
[1773126664783,43.72495429,86.589,86.508,8.495037]
[1773126664983,43.72495429,86.589,86.509,8.495037]
[1773126665186,43.72495429,86.589,86.507,184.8]
[1773126665889,43.72605509,86.586,86.481,34.76]
[1773126666585,43.71397762,86.58,86.525,10.401]
[1773126666989,43.71397762,86.58,86.5,9.14230649]
[1773126667689,43.71397762,86.58,86.533,10.4]
[1773126668086,43.71397762,86.58,86.5,9.14230649]
[1773126668681,43.71732819,86.569,86.48,9.14230649]
[1773126669586,43.71834501,86.567,86.502,10.403]
[1773126670581,43.71544813,86.562,86.492,10.405]
[1773126671192,9.14230649,86.55,86.492,10.405]
[1773126671389,43.71643424,86.549,86.492,10.405]
[1773126673993,43.69536345,86.547,86.492,10.405]
[1773126674493,43.69536345,86.547,86.478,10.42777375]
[1773126674494,43.69536345,86.547,86.478,10.406]
[1773126675393,43.70374183,86.542,86.478,10.406]
[1773126675787,43.70374183,86.542,86.463,10.42777375]
[1773126675993,43.70374183,86.518,86.429,10.42777375]
[1773126676193,43.70374183,86.518,86.44,9.14230649]
[1773126676793,43.70374183,86.518,86.441,10.42777375]
[1773126677193,43.70374183,86.518,86.446,10.42777375]
[1773126677995,43.70374183,86.518,86.45,10.42777375]
[1773126678195,43.70374183,86.518,86.455,10.42777375]
[1773126678496,43.69003788,86.542,86.498,10.404]
[1773126678708,43.69003788,86.542,86.46,9.14230649]
[1773126679091,43.69086339,86.54,86.478,10.406]
[1773126679296,43.69086339,86.54,86.463,10.42777375]
[1773126679690,43.69086339,86.538,86.484,10.405]
[1773126681296,43.68370272,86.529,86.475,10.407]
[1773126681494,43.68370272,86.529,86.446,10.42777375]
[1773126682096,43.68370272,86.529,86.445,10.42777375]
[1773126682298,43.68370272,86.529,86.43,9.14230649]
[1773126682299,43.68370272,86.529,86.444,10.42777375]
[1773126682503,43.77685468,86.526,86.443,10.42777375]
[1773126682699,43.77685468,86.526,86.444,10.42777375]
[1773126682998,43.77685468,86.526,86.44,19.57008024]
[1773126683198,43.77685468,86.526,86.44,9.14230649]
[1773126683499,43.77782679,86.523,86.465,10.408]
[1773126683889,43.77782679,86.494,86.424,10.42777375]
[1773126684089,43.78963188,86.489,86.413,10.42777375]
[1773126684294,43.78963188,86.489,86.399,20.832]
[1773126684295,43.78963188,86.489,86.41,10.42777375]
[1773126685193,43.78963188,86.489,86.408,10.42777375]
[1773126685499,43.79060255,86.487,86.436,10.411]
[1773126686298,43.7660738,86.479,86.427,10.412]
[1773126686499,43.7660738,86.479,86.41,10.42777375]
[1773126686801,43.7660738,86.479,86.408,10.42777375]
[1773126687103,9.14230649,86.5,86.371,162.082]
[1773126687104,43.76696701,86.509,86.413,10.42777375]
[1773126687402,43.76696701,86.509,86.401,13.93314755]
[1773126687403,52.9092735,86.49,86.406,10.42777375]
[1773126687600,52.9092735,86.49,86.405,10.42777375]
[1773126687790,52.9092735,86.49,86.406,10.42777375]
[1773126688194,52.9092735,86.49,86.403,10.42777375]
[1773126688393,43.76834617,86.487,86.408,10.42777375]
[1773126688593,43.76834617,86.487,86.413,10.42777375]
[1773126688795,43.76834617,86.487,86.417,10.42777375]